fUSD/lending_fUSD_20240518
["ID","MTS","AMOUNT","RATE_DAILY","PERIOD"]
[327398158,1716041450549,-500.0,0.00028766,2]
[327398160,1716041450557,-507.48,0.00028766,2]
[327398162,1716041450567,-500.0,0.00028766,2]
[327398164,1716041450576,-642.82,0.00028766,2]
[327398166,1716041450586,-584.72,0.00028766,2]
[327398168,1716041450595,-188.50802433,0.00028766,2]
[327398170,1716041450604,-500.0,0.00028766,2]
[327398172,1716041450612,-732.2,0.00028766,2]
[327398173,1716041450623,-562.32,0.00028766,2]
[327398176,1716041450632,-682.41,0.00028766,2]
[327398178,1716041450642,-863.04,0.00028766,2]
[327398179,1716041450651,-500.0,0.00028766,2]
[327398181,1716041450661,-500.0,0.00028766,2]
[327398184,1716041450671,-609.24,0.00028766,2]
[327398185,1716041450680,-500.0,0.00028766,2]
[327398188,1716041450689,-150.0,0.00028766,2]
[327398190,1716041450698,-500.0,0.00028766,2]
[327398192,1716041450708,-1007.03,0.00028766,2]
[327398193,1716041450716,-3346.88,0.00028766,2]
[327398196,1716041450727,-879.97,0.00028766,2]
[327398198,1716041450736,-500.0,0.00028766,2]
[327398200,1716041450746,-500.0,0.00028766,2]
[327398201,1716041450756,-500.0,0.00028766,2]
[327398203,1716041450766,-500.0,0.00028766,2]
[327398206,1716041450778,-500.0,0.00028766,2]
[327398208,1716041450787,-596.04,0.00028766,2]
[327398209,1716041450796,-500.0,0.00028766,2]
[327398212,1716041450806,-329.95077629,0.00028766,2]
[327398214,1716041450815,-500.0,0.00028766,2]
[327398215,1716041450824,-500.0,0.00028766,2]
[327398218,1716041450833,-500.0,0.00028766,2]
[327398219,1716041450842,-500.0,0.00028766,2]
[327398221,1716041450851,-500.0,0.00028766,2]
[327398224,1716041450861,-500.0,0.00028766,2]
[327398226,1716041450870,-500.0,0.00028766,2]
[327398228,1716041450879,-500.0,0.00028766,2]
[327398230,1716041450888,-500.0,0.00028766,2]
[327398232,1716041450898,-500.0,0.00028766,2]
[327398233,1716041450907,-500.0,0.00028766,2]
[327398236,1716041450916,-500.0,0.00028766,2]
[327398238,1716041450926,-1148.85,0.00028766,2]
[327398240,1716041450936,-500.0,0.00028766,2]
[327398242,1716041450945,-500.0,0.00028766,2]
[327398244,1716041450955,-500.0,0.00028766,2]
[327398246,1716041450964,-1003.53,0.00028766,2]
[327398248,1716041450974,-500.0,0.00028766,2]
[327398250,1716041450984,-500.0,0.00028766,2]
[327398252,1716041450993,-500.0,0.00028766,2]
[327398254,1716041451002,-500.0,0.00028766,2]
[327398256,1716041451011,-500.0,0.00028766,2]
[327398257,1716041451020,-500.0,0.00028766,2]
[327398259,1716041451031,-500.0,0.00028766,2]
[327398262,1716041451040,-500.0,0.00028766,2]
[327398263,1716041451049,-500.0,0.00028766,2]
[327398266,1716041451058,-500.0,0.00028766,2]
[327398268,1716041451067,-500.0,0.00028766,2]
[327398270,1716041451077,-500.0,0.00028766,2]
[327398271,1716041451086,-500.0,0.00028766,2]
[327398274,1716041451097,-500.0,0.00028766,2]
[327398276,1716041451107,-556.39,0.00028766,2]
[327398278,1716041451116,-500.0,0.00028766,2]
[327398280,1716041451125,-553.97,0.00028766,2]
[327398282,1716041451134,-500.0,0.00028766,2]
[327398284,1716041451143,-500.0,0.00028766,2]
[327398286,1716041451152,-500.0,0.00028766,2]
[327398288,1716041451161,-514.32,0.00028766,2]
[327398290,1716041451171,-1667.33,0.00028766,2]
[327398292,1716041451180,-702.72,0.00028766,2]
[327398294,1716041451190,-903.0,0.00028766,2]
[327398296,1716041451199,-500.0,0.00028766,2]
[327398298,1716041451208,-500.0,0.00028766,2]
[327398300,1716041451217,-570.97,0.00028766,2]
[327398302,1716041451226,-609.54117925,0.00028766,2]
[327398303,1716041451235,-1896.07,0.00028766,2]
[327398306,1716041451244,-500.0,0.00028766,2]
[327398307,1716041451254,-500.0,0.00028766,2]
[327398310,1716041451263,-500.0,0.00028766,2]
[327398311,1716041451273,-500.0,0.00028766,2]
[327398314,1716041451282,-759.72,0.00028766,2]
[327398316,1716041451292,-500.0,0.00028766,2]
[327398317,1716041451307,-1078.32,0.00028766,2]
[327398319,1716041451316,-500.0,0.00028766,2]
[327398321,1716041451325,-500.0,0.00028766,2]
[327398324,1716041451336,-959.4,0.00028766,2]
[327398326,1716041451346,-500.0,0.00028766,2]
[327398328,1716041451355,-772.34,0.00028766,2]
[327398330,1716041451364,-500.0,0.00028766,2]
[327398332,1716041451374,-500.0,0.00028766,2]
[327398334,1716041451386,-500.0,0.00028766,2]
[327398336,1716041451396,-500.0,0.00028766,2]
[327398337,1716041451405,-1076.15,0.00028766,2]
[327398340,1716041451414,-500.0,0.00028766,2]
[327398342,1716041451424,-500.0,0.00028766,2]
[327398344,1716041451433,-500.0,0.00028766,2]
[327398346,1716041451443,-500.0,0.00028766,2]
[327398348,1716041451453,-1545.2,0.00028766,2]
[327398350,1716041451463,-500.0,0.00028766,2]
[327398352,1716041451473,-500.0,0.00028766,2]
[327398354,1716041451482,-500.0,0.00028766,2]
[327398356,1716041451491,-500.0,0.00028766,2]
[327398358,1716041451500,-500.0,0.00028766,2]
[327398360,1716041451510,-1066.88,0.00028766,2]
[327398362,1716041451519,-2799.24,0.00028766,2]
[327398364,1716041451529,-1604.45,0.00028766,2]
[327398366,1716041451538,-1043.2,0.00028766,2]
[327398368,1716041451547,-500.0,0.00028766,2]
[327398370,1716041451557,-500.0,0.00028766,2]
[327398372,1716041451567,-664.59,0.00028766,2]
[327398374,1716041451576,-500.0,0.00028766,2]
[327398376,1716041451585,-500.0,0.00028766,2]
[327398378,1716041451595,-500.0,0.00028766,2]
[327398380,1716041451604,-7133.02,0.00028766,2]
[327398382,1716041451613,-500.0,0.00028766,2]
[327398384,1716041451623,-500.0,0.00028766,2]
[327398386,1716041451632,-665.85,0.00028766,2]
[327398388,1716041451642,-499.62244347,0.00028766,2]
[327398390,1716041451651,-844.04,0.00028766,2]
[327398392,1716041451660,-898.61,0.00028766,2]
[327398394,1716041451669,-500.0,0.00028766,2]
[327398397,1716041451679,-500.0,0.00028766,2]
[327398399,1716041451689,-984.26,0.00028766,2]
[327398401,1716041451699,-1127.28,0.00028766,2]
[327398403,1716041451709,-997.87,0.00028766,2]
[327398404,1716041451718,-559.43,0.00028766,2]
[327398407,1716041451727,-575.21,0.00028766,2]
[327398409,1716041451737,-500.0,0.00028766,2]
[327398410,1716041451746,-500.0,0.00028766,2]
[327398411,1716041451755,-500.0,0.00028766,2]
[327398412,1716041451765,-500.0,0.00028766,2]
[327398413,1716041451775,-583.84,0.00028766,2]
[327398414,1716041451784,-1919.96,0.00028766,2]
[327398415,1716041451794,-1477.41,0.00028766,2]
[327398416,1716041451803,-500.0,0.00028766,2]
[327398417,1716041451812,-500.0,0.00028766,2]
[327398418,1716041451822,-500.0,0.00028766,2]
[327398420,1716041451832,-852.06,0.00028766,2]
[327398422,1716041451841,-702.19,0.00028766,2]
[327398424,1716041451850,-555.41,0.00028766,2]
[327398426,1716041451859,-1908.21,0.00028766,2]
[327398428,1716041451868,-500.0,0.00028766,2]
[327398430,1716041451878,-500.0,0.00028766,2]
[327398432,1716041451887,-500.0,0.00028766,2]
[327398434,1716041451896,-500.0,0.00028766,2]
[327398436,1716041451906,-500.0,0.00028766,2]
[327398438,1716041451915,-534.5,0.00028766,2]
[327398440,1716041451925,-500.0,0.00028766,2]
[327398442,1716041451934,-667.95,0.00028766,2]
[327398444,1716041451944,-500.0,0.00028766,2]
[327398446,1716041451953,-774.25,0.00028766,2]
[327398448,1716041451963,-500.0,0.00028766,2]
[327398450,1716041451973,-870.53,0.00028766,2]
[327398452,1716041451982,-500.0,0.00028766,2]
[327398454,1716041451991,-559.08,0.00028766,2]
[327398456,1716041452001,-520.02,0.00028766,2]
[327398458,1716041452010,-500.0,0.00028766,2]
[327398460,1716041452020,-4108.19,0.00028766,2]
[327398462,1716041452030,-500.0,0.00028766,2]
[327398465,1716041452039,-501.95,0.00028766,2]
[327398467,1716041452049,-500.0,0.00028766,2]
[327398469,1716041452059,-438.05949589,0.00028766,2]
[327398471,1716041452068,-500.0,0.00028767,2]
[327398473,1716041452077,-500.0,0.00028767,2]
[327398474,1716041452086,-500.0,0.00028767,2]
[327398477,1716041452096,-500.0,0.00028767,2]
[327398479,1716041452105,-500.72,0.00028767,2]
[327398481,1716041452115,-500.0,0.00028767,2]
[327398483,1716041452124,-500.0,0.00028767,2]
[327398485,1716041452134,-500.0,0.00028767,2]
[327398487,1716041452143,-500.0,0.00028767,2]
[327398489,1716041452153,-500.0,0.00028767,2]
[327398491,1716041452163,-500.0,0.00028767,2]
[327398493,1716041452172,-500.0,0.00028767,2]
[327398495,1716041452182,-760.4,0.00028767,2]
[327398497,1716041452191,-755.68,0.00028767,2]
[327398499,1716041452201,-500.0,0.00028767,2]
[327398501,1716041452210,-956.49,0.00028767,2]
[327398503,1716041452219,-500.0,0.00028767,2]
[327398505,1716041452229,-500.0,0.00028767,2]
[327398507,1716041452239,-500.0,0.00028767,2]
[327398509,1716041452248,-973.26,0.00028767,2]
[327398511,1716041452257,-500.0,0.00028767,2]
[327398513,1716041452267,-500.0,0.00028767,2]
[327398515,1716041452276,-154.45,0.00028778,2]
[327398517,1716041452285,-164.74024365,0.0002888,2]
[327398519,1716041452295,-317.18,0.0002903,3]
[327398521,1716041452308,-500.0,0.0002904,2]
[327398523,1716041452318,-500.0,0.0002904,2]
[327398525,1716041452327,-500.0,0.0002904,2]
[327398527,1716041452337,-713.42,0.0002904,2]
[327398529,1716041452347,-500.0,0.0002904,2]
[327398531,1716041452356,-500.0,0.0002904,2]
[327398533,1716041452365,-507.48,0.0002904,2]
[327398535,1716041452376,-500.0,0.0002904,2]
[327398537,1716041452386,-642.82,0.0002904,2]
[327398539,1716041452395,-584.72,0.0002904,2]
[327398541,1716041452405,-500.0,0.0002904,2]
[327398543,1716041452414,-732.2,0.0002904,2]
[327398545,1716041452423,-562.32,0.0002904,2]
[327398547,1716041452432,-682.41,0.0002904,2]
[327398549,1716041452441,-863.04,0.0002904,2]
[327398551,1716041452451,-500.0,0.0002904,2]
[327398553,1716041452460,-500.0,0.0002904,2]
[327398555,1716041452470,-609.24,0.0002904,2]
[327398557,1716041452480,-500.0,0.0002904,2]
[327398559,1716041452489,-150.0,0.0002904,2]
[327398562,1716041452499,-500.0,0.0002904,2]
[327398564,1716041452508,-1007.03,0.0002904,2]
[327398566,1716041452517,-3346.88,0.0002904,2]
[327398567,1716041452526,-879.97,0.0002904,2]
[327398570,1716041452535,-500.0,0.0002904,2]
[327398571,1716041452545,-500.0,0.0002904,2]
[327398574,1716041452554,-500.0,0.0002904,2]
[327398575,1716041452564,-500.0,0.0002904,2]
[327398578,1716041452573,-500.0,0.0002904,2]
[327398580,1716041452583,-596.04,0.0002904,2]
[327398581,1716041452592,-500.0,0.0002904,2]
[327398583,1716041452601,-500.0,0.0002904,2]
[327398586,1716041452611,-500.0,0.0002904,2]
[327398588,1716041452621,-500.0,0.0002904,2]
[327398590,1716041452631,-500.0,0.0002904,2]
[327398592,1716041452640,-500.0,0.0002904,2]
[327398593,1716041452650,-500.0,0.0002904,2]
[327398596,1716041452659,-500.0,0.0002904,2]
[327398598,1716041452668,-500.0,0.0002904,2]
[327398600,1716041452679,-500.0,0.0002904,2]
[327398602,1716041452689,-500.0,0.0002904,2]
[327398604,1716041452698,-500.0,0.0002904,2]
[327398606,1716041452707,-500.0,0.0002904,2]
[327398608,1716041452717,-1148.85,0.0002904,2]
[327398610,1716041452726,-500.0,0.0002904,2]
[327398612,1716041452735,-500.0,0.0002904,2]
[327398614,1716041452744,-500.0,0.0002904,2]
[327398616,1716041452754,-1003.53,0.0002904,2]
[327398618,1716041452764,-500.0,0.0002904,2]
[327398620,1716041452774,-500.0,0.0002904,2]
[327398636,1716041452910,-500.0,0.0002904,2]
[327398638,1716041452925,-500.0,0.0002904,2]
[327398640,1716041452936,-500.0,0.0002904,2]
[327398642,1716041452946,-500.0,0.0002904,2]
[327398645,1716041452956,-500.0,0.0002904,2]
[327398647,1716041452964,-500.0,0.0002904,2]
[327398649,1716041452973,-500.0,0.0002904,2]
[327398651,1716041452983,-500.0,0.0002904,2]
[327398653,1716041452992,-500.0,0.0002904,2]
[327398655,1716041453002,-500.0,0.0002904,2]
[327398657,1716041453011,-199.81512338,0.0002904,2]
[327398659,1716041453021,-500.0,0.0002904,2]
[327398661,1716041453030,-556.39,0.0002904,2]
[327398663,1716041453039,-500.0,0.0002904,2]
[327398665,1716041453048,-553.97,0.0002904,2]
[327398667,1716041453057,-500.0,0.0002904,2]
[327398669,1716041453066,-500.0,0.0002904,2]
[327398671,1716041453075,-500.0,0.0002904,2]
[327398673,1716041453084,-514.32,0.0002904,2]
[327398674,1716041453093,-1667.33,0.0002904,2]
[327398677,1716041453104,-702.72,0.0002904,2]
[327398679,1716041453113,-903.0,0.0002904,2]
[327398681,1716041453123,-500.0,0.0002904,2]
[327398683,1716041453132,-500.0,0.0002904,2]
[327398685,1716041453141,-570.97,0.0002904,2]
[327398687,1716041453151,-500.0,0.0002904,2]
[327398689,1716041453160,-1896.07,0.0002904,2]
[327398691,1716041453169,-500.0,0.0002904,2]
[327398693,1716041453178,-500.0,0.0002904,2]
[327398695,1716041453187,-500.0,0.0002904,2]
[327398697,1716041453196,-759.72,0.0002904,2]
[327398699,1716041453206,-500.0,0.0002904,2]
[327398701,1716041453215,-1078.32,0.0002904,2]
[327398703,1716041453224,-500.0,0.0002904,2]
[327398704,1716041453233,-500.0,0.0002904,2]
[327398707,1716041453243,-959.4,0.0002904,2]
[327398709,1716041453252,-500.0,0.0002904,2]
[327398710,1716041453262,-772.34,0.0002904,2]
[327398712,1716041453271,-500.0,0.0002904,2]
[327398714,1716041453282,-500.0,0.0002904,2]
[327398717,1716041453292,-500.0,0.0002904,2]
[327398718,1716041453306,-500.0,0.0002904,2]
[327398720,1716041453315,-1076.15,0.0002904,2]
[327398722,1716041453324,-500.0,0.0002904,2]
[327398724,1716041453333,-500.0,0.0002904,2]
[327398727,1716041453347,-500.0,0.0002904,2]
[327398729,1716041453357,-500.0,0.0002904,2]
[327398731,1716041453368,-1545.2,0.0002904,2]
[327398733,1716041453380,-500.0,0.0002904,2]
[327398735,1716041453390,-500.0,0.0002904,2]
[327398737,1716041453399,-500.0,0.0002904,2]
[327398739,1716041453409,-500.0,0.0002904,2]
[327398741,1716041453418,-500.0,0.0002904,2]
[327398743,1716041453428,-1066.88,0.0002904,2]
[327398745,1716041453437,-2799.24,0.0002904,2]
[327398747,1716041453446,-1604.45,0.0002904,2]
[327398749,1716041453457,-1043.2,0.0002904,2]
[327398751,1716041453467,-500.0,0.0002904,2]
[327398753,1716041453476,-500.0,0.0002904,2]
[327398755,1716041453485,-664.59,0.0002904,2]
[327398757,1716041453495,-500.0,0.0002904,2]
[327398759,1716041453505,-500.0,0.0002904,2]
[327398761,1716041453515,-500.0,0.0002904,2]
[327398763,1716041453524,-7133.02,0.0002904,2]
[327398764,1716041453534,-500.0,0.0002904,2]
[327398765,1716041453543,-500.0,0.0002904,2]
[327398766,1716041453553,-665.85,0.0002904,2]
[327398767,1716041453562,-898.61,0.0002904,2]
[327398768,1716041453571,-844.04,0.0002904,2]
[327398769,1716041453580,-500.0,0.0002904,2]
[327398770,1716041453590,-500.0,0.0002904,2]
[327398771,1716041453600,-984.26,0.0002904,2]
[327398772,1716041453609,-1127.28,0.0002904,2]
[327398774,1716041453618,-997.87,0.0002904,2]
[327398776,1716041453627,-559.43,0.0002904,2]
[327398778,1716041453636,-575.21,0.0002904,2]
[327398780,1716041453645,-500.0,0.0002904,2]
[327398782,1716041453654,-500.0,0.0002904,2]
[327398784,1716041453664,-500.0,0.0002904,2]
[327398786,1716041453673,-500.0,0.0002904,2]
[327398788,1716041453683,-583.84,0.0002904,2]
[327398791,1716041453692,-1919.96,0.0002904,2]
[327398793,1716041453701,-1477.41,0.0002904,2]
[327398795,1716041453710,-500.0,0.0002904,2]
[327398797,1716041453719,-500.0,0.0002904,2]
[327398799,1716041453729,-500.0,0.0002904,2]
[327398801,1716041453738,-852.06,0.0002904,2]
[327398803,1716041453747,-702.19,0.0002904,2]
[327398805,1716041453757,-555.41,0.0002904,2]
[327398807,1716041453766,-1908.21,0.0002904,2]
[327398809,1716041453776,-500.0,0.0002904,2]
[327398811,1716041453786,-500.0,0.0002904,2]
[327398813,1716041453795,-500.0,0.0002904,2]
[327398815,1716041453804,-500.0,0.0002904,2]
[327398817,1716041453813,-500.0,0.0002904,2]
[327398819,1716041453823,-534.5,0.0002904,2]
[327398821,1716041453832,-500.0,0.0002904,2]
[327398823,1716041453841,-667.95,0.0002904,2]
[327398825,1716041453851,-500.0,0.0002904,2]
[327398827,1716041453860,-774.25,0.0002904,2]
[327398829,1716041453869,-500.0,0.0002904,2]
[327398831,1716041453878,-870.53,0.0002904,2]
[327398833,1716041453887,-500.0,0.0002904,2]
[327398835,1716041453896,-559.08,0.0002904,2]
[327398837,1716041453906,-520.02,0.0002904,2]
[327398839,1716041453916,-453.27846623,0.0002904,2]
[327398841,1716041453925,-4108.19,0.0002904,2]
[327398843,1716041453935,-500.0,0.0002904,2]
[327398845,1716041453944,-501.95,0.0002904,2]
[327398847,1716041453953,-500.0,0.0002904,2]
[327398849,1716041453962,-500.0,0.00029041,2]
[327398851,1716041453971,-500.0,0.00029041,2]
[327398853,1716041453981,-500.0,0.00029041,2]
[327398855,1716041453990,-500.0,0.00029041,2]
[327398857,1716041453999,-500.72,0.00029041,2]
[327398859,1716041454009,-500.0,0.00029041,2]
[327398861,1716041454018,-500.0,0.00029041,2]
[327398863,1716041454029,-500.0,0.00029041,2]
[327398865,1716041454038,-500.0,0.00029041,2]
[327398867,1716041454047,-500.0,0.00029041,2]
[327398869,1716041454057,-500.0,0.00029041,2]
[327398871,1716041454066,-500.0,0.00029041,2]
[327398873,1716041454076,-760.4,0.00029041,2]
[327398875,1716041454085,-755.68,0.00029041,2]
[327398877,1716041454095,-500.0,0.00029041,2]
[327398879,1716041454104,-956.49,0.00029041,2]
[327398881,1716041454113,-500.0,0.00029041,2]
[327398883,1716041454122,-500.0,0.00029041,2]
[327398885,1716041454132,-973.26,0.00029041,2]
[327398886,1716041454141,-500.0,0.00029041,2]
[327398889,1716041454150,-500.0,0.00029041,2]
[327398891,1716041454160,-164.74024365,0.00029043,2]
[327398893,1716041454169,-202.41314469,0.00029214,2]
[327398895,1716041454179,-844.47586163,0.00029314,2]
[327398897,1716041454189,-500.0,0.00029314,2]
[327398899,1716041454198,-500.0,0.00029314,2]
[327398901,1716041454208,-500.0,0.00029314,2]
[327398903,1716041454217,-713.42,0.00029314,2]
[327398904,1716041454226,-500.0,0.00029314,2]
[327398907,1716041454236,-500.0,0.00029314,2]
[327398909,1716041454246,-507.48,0.00029314,2]
[327398911,1716041454255,-500.0,0.00029314,2]
[327398913,1716041454265,-642.82,0.00029314,2]
[327398915,1716041454274,-584.72,0.00029314,2]
[327398917,1716041454285,-500.0,0.00029314,2]
[327398919,1716041454297,-732.2,0.00029314,2]
[327398921,1716041454308,-562.32,0.00029314,2]
[327398922,1716041454318,-682.41,0.00029314,2]
[327398924,1716041454327,-863.04,0.00029314,2]
[327398927,1716041454336,-500.0,0.00029314,2]
[327398929,1716041454347,-500.0,0.00029314,2]
[327398931,1716041454357,-609.24,0.00029314,2]
[327398933,1716041454366,-500.0,0.00029314,2]
[327398935,1716041454376,-150.0,0.00029314,2]
[327398937,1716041454386,-500.0,0.00029314,2]
[327398938,1716041454396,-1007.03,0.00029314,2]
[327398941,1716041454405,-3346.88,0.00029314,2]
[327398943,1716041454415,-879.97,0.00029314,2]
[327398944,1716041454424,-500.0,0.00029314,2]
[327398947,1716041454433,-500.0,0.00029314,2]
[327398949,1716041454443,-500.0,0.00029314,2]
[327398951,1716041454452,-500.0,0.00029314,2]
[327398952,1716041454462,-500.0,0.00029314,2]
[327398955,1716041454472,-596.04,0.00029314,2]
[327398957,1716041454481,-500.0,0.00029314,2]
[327398959,1716041454491,-500.0,0.00029314,2]
[327398960,1716041454500,-500.0,0.00029314,2]
[327398963,1716041454510,-500.0,0.00029314,2]
[327398965,1716041454519,-500.0,0.00029314,2]
[327398966,1716041454529,-500.0,0.00029314,2]
[327398969,1716041454539,-500.0,0.00029314,2]
[327398971,1716041454548,-500.0,0.00029314,2]
[327398973,1716041454557,-500.0,0.00029314,2]
[327398975,1716041454567,-500.0,0.00029314,2]
[327398977,1716041454577,-500.0,0.00029314,2]
[327398979,1716041454586,-500.0,0.00029314,2]
[327398981,1716041454596,-187.22788992,0.00029314,2]
[327398983,1716041454605,-1148.85,0.00029314,2]
[327398985,1716041454614,-500.0,0.00029314,2]
[327398987,1716041454623,-500.0,0.00029314,2]
[327398989,1716041454633,-500.0,0.00029314,2]
[327398991,1716041454642,-1003.53,0.00029314,2]
[327398993,1716041454652,-500.0,0.00029314,2]
[327398994,1716041454661,-500.0,0.00029314,2]
[327398996,1716041454671,-500.0,0.00029314,2]
[327398999,1716041454681,-500.0,0.00029314,2]
[327399001,1716041454691,-500.0,0.00029314,2]
[327399003,1716041454700,-500.0,0.00029314,2]
[327399005,1716041454710,-311.02985966,0.00029314,2]
[327399007,1716041454720,-500.0,0.00029314,2]
[327399009,1716041454730,-500.0,0.00029314,2]
[327399011,1716041454740,-500.0,0.00029314,2]
[327399013,1716041454750,-500.0,0.00029314,2]
[327399015,1716041454759,-500.0,0.00029314,2]
[327399017,1716041454768,-500.0,0.00029314,2]
[327399019,1716041454779,-556.39,0.00029314,2]
[327399021,1716041454788,-500.0,0.00029314,2]
[327399023,1716041454797,-553.97,0.00029314,2]
[327399025,1716041454807,-500.0,0.00029314,2]
[327399027,1716041454816,-500.0,0.00029314,2]
[327399029,1716041454826,-527.53071486,0.00029314,2]
[327399031,1716041454836,-247.62837404,0.00029314,2]
[327399043,1716041454940,-266.69162596,0.00029314,2]
[327399045,1716041454951,-1667.33,0.00029314,2]
[327399047,1716041454961,-702.72,0.00029314,2]
[327399049,1716041454970,-709.63900404,0.00029314,2]
[327400093,1716042182169,-5562.38640349,0.00014926,2]
[327400094,1716042182192,-155.0,0.00014927,2]
[327400095,1716042182214,-803.52867756,0.00014927,2]
[327400096,1716042182235,-623.40363428,0.00014928,2]
[327400097,1716042182255,-3286.19947015,0.00014941,2]
[327400098,1716042182276,-152.71653481,0.00016282,2]
[327400099,1716042182297,-164.74024366,0.00018903,2]
[327400100,1716042182317,-319.99,0.00019452,2]
[327400101,1716042182338,-167.87058706,0.00019728,2]
[327400102,1716042191197,209.17,0.00025517,120]
[327400152,1716042432958,500.029,0.0003,90]
[327400153,1716042436809,164.74024366,0.00015095,2]
[327400154,1716042437316,164.74024366,0.00018147,2]
[327400155,1716042437479,255.21518366,0.00016547,2]
[327400156,1716042450839,189.52026818,0.0001891,2]
[327400157,1716042454156,152.71653481,0.00019058,2]
[327400163,1716042630134,156.61,0.00013973,2]
[327400164,1716042631634,-152.71653481,0.0002103,2]
[327400166,1716042631648,-673.805041,0.00023249,2]
[327400168,1716042631657,-154.45,0.00023366,2]
[327400170,1716042631667,-164.96,0.00023849,2]
[327400171,1716042631676,-377.88213118,0.0002423,2]
[327400172,1716042631687,-200.30035238,0.00024231,2]
[327400173,1716042631697,-561.16810112,0.00024232,2]
[327400174,1716042631964,-140.94113794,0.00024232,2]
[327400175,1716042631975,-155.0,0.00024232,2]
[327400176,1716042631985,-768.77670157,0.00024232,2]
[327400177,1716042631996,-10192.33462747,0.00024232,2]
[327400178,1716042632008,-584.49,0.00024232,2]
[327400179,1716042632019,-1302.24553177,0.00024232,2]
[327400180,1716042632124,-10593.59903926,0.00024232,2]
[327400181,1716042632137,-598.11050968,0.00024232,2]
[327400183,1716042637703,-865.5,0.00024232,2]
[327400184,1716042637865,-79077.90856269,0.00024232,2]
[327400185,1716042637878,-5216.0,0.00024232,2]
[327400186,1716042637891,-74207.51136374,0.00024232,2]
[327400187,1716042637904,-173744.40083234,0.00024232,2]
[327400188,1716042637915,-363.53880146,0.00024233,2]
[327400189,1716042637925,-196.77772421,0.00024234,2]
[327400190,1716042638020,-5011.6,0.00024234,2]
[327400191,1716042638033,-1655.488695,0.00024234,2]
[327400192,1716042638046,-17036.13358079,0.00024234,2]
[327400193,1716042638056,-2000.0,0.00024968,3]
[327400194,1716042638067,-1550.0,0.00025,2]
[327400195,1716042638078,-250.0,0.00025086,2]
[327400196,1716042638088,-170.23,0.00025103,2]
[327400197,1716042638098,-250.0,0.00025121,2]
[327400198,1716042638108,-500.0,0.00025306,2]
[327400199,1716042638119,-250.0,0.00025323,2]
[327400200,1716042638130,-1000.0,0.00026378,2]
[327400201,1716042638139,-991.0,0.000272,2]
[327400202,1716042638150,-500.0,0.00027397,2]
[327400203,1716042638160,-500.0,0.00027397,2]
[327400204,1716042638170,-500.0,0.00027397,2]
[327400205,1716042638180,-500.0,0.00027397,2]
[327400206,1716042638191,-500.0,0.00027397,2]
[327400208,1716042638200,-500.0,0.00027397,2]
[327400210,1716042638210,-500.0,0.00027397,2]
[327400211,1716042638221,-500.0,0.00027397,2]